{"text_format":"3","workbook":"xlsx","n_sheets":5,"sheets":["A.Implementation & Project Mgmt","B. Self-funding Fee Structure","C.Ongoing Maintenance & Support","D. Other Services","Total Cost"],"not_rendered":{"defined_names":4},"read":"whole","date_system":"1900"}

{"sheet":"A.Implementation & Project Mgmt","index":0,"n_rows":21,"n_cols":6,"rows_kept":21,"merged":[[0,0,1,5],[3,0,3,5],[4,0,4,5],[17,0,17,4],[20,0,20,5]]}
["23-FIR-RFP-304: FIRE CODE PERMITTING AND INSPECTIONS SOFTWARE"]
[]
[]
["ATTACHMENT A - COST PROPOSAL*"]
["SECTION 1:  Project Management and Implementation Services for Fire Code Permitting and Inspections Software (one-time costs)"]
[]
["Item No.","Item Description","QTY","Unit of Measure","Unit Price","Total Year 1 Price"]
[null,"Project Management Services"]
[1,"Project Management (provide details)",null,"Each",null,{"$f":"C9*E9","v":{"v":0,"d":"$0.00"}}]
[]
[null,"Implementation Services"]
[2,"System Configuration/setup",null,"Each",null,{"$f":"C12*E12","v":{"v":0,"d":"$0.00"}}]
[]
[3,"Training",null,"Each",null,{"$f":"C14*E14","v":{"v":0,"d":"$0.00"}}]
[]
[null,"Integration Development"]
[4,"Integration with SSO (Microsoft Azure Identity Management)",null,"Each",null,{"$f":"C17*E17","v":{"v":0,"d":"$0.00"}}]
["TOTAL:",{"$nulls":4},{"$f":"SUM(F9,F12,F14,F17)","v":{"v":0,"d":"$0.00"}}]
[]
[]
["* Please modify this template as necessary to provide your firm's preliminary cost proposal. Final rates and fees will be negotiated with the awarded Offeror."]

{"sheet":"B. Self-funding Fee Structure","index":1,"n_rows":33,"n_cols":2,"rows_kept":33,"merged":[[0,0,0,1],[1,0,1,1],[2,0,2,1],[3,0,3,1],[6,0,6,1],[7,0,7,1],[15,0,15,1],[16,0,16,1]]}
["ATTACHMENT A\n23-FIR-RFP-304: COMMERCIAL SYSTEMS TESTING SOFTWARE AND SUPPORT SELF-FUNDING FEE STRUCTURE TEMPLATE"]
["\nPlease modify this template as necessary to provide your firm’s preliminary cost proposal. Final costs will be negotiated with the awarded Offeror."]
["Offeror Name: _______________________________________________"]
["Date: _______________________"]
[]
[]
["Commission Rates"]
["Detail all commisson rates/fees for services included in this project."]
{"$rows_empty":7}
["Other Services and Fees"]
["Detail any additional offerings not listed in the table above with all fees and any service or infrastructure costs."]
[null,"$"]
[null,"$"]
[null,"$"]
[null,"$"]
[null,"$"]
[null,"$"]
[null,"$"]
[null,"$"]
[null,"$"]
[null,"$"]
[null,"$"]
[null,"$"]
[null,"$"]
[null,"$"]
[null,"$"]
[null,"$"]

{"sheet":"C.Ongoing Maintenance & Support","index":2,"n_rows":18,"n_cols":10,"rows_kept":18,"merged":[[0,0,0,9],[17,0,17,4],[20,0,20,1]]}
["SECTION 2:  Ongoing Software Support, Maintenance, and Hosting Services for Fire Code Permitting and Inspections Software (recurring costs)"]
[]
["Item No.","Item Description","QTY","Unit of Measure","Unit Price","Total Year 1 Price","Year 2 Price","Year 3 Price","Year 4 Price","Year 5 Price"]
[null,"Software Licenses/Seats"]
[1,"County admin/super user licenses",null,"Each",null,{"$f":"C5*E5","v":{"v":0,"d":"$0.00"}},{"v":0,"d":"$0.00"},{"v":0,"d":"$0.00"},{"v":0,"d":"$0.00"},{"v":0,"d":"$0.00"}]
[]
[2,"County standard user license",null,"Each",null,{"$f":"C7*E7","v":{"v":0,"d":"$0.00"}},{"v":0,"d":"$0.00"},{"v":0,"d":"$0.00"},{"v":0,"d":"$0.00"},{"v":0,"d":"$0.00"}]
[]
[3,"external users  licenses / portal access",null,"Each",null,{"$f":"C9*E9","v":{"v":0,"d":"$0.00"}},{"v":0,"d":"$0.00"},{"v":0,"d":"$0.00"},{"v":0,"d":"$0.00"},{"v":0,"d":"$0.00"}]
[]
[null,"Support Services and Maintenance"]
[3,"Tech Support",null,"Per Unit",null,{"$f":"C12*E12","v":{"v":0,"d":"$0.00"}},{"v":0,"d":"$0.00"},{"v":0,"d":"$0.00"},{"v":0,"d":"$0.00"},{"v":0,"d":"$0.00"}]
[]
[4,"Annual Maintenance",null,"Per Unit",null,{"$f":"C14*E14","v":{"v":0,"d":"$0.00"}},{"v":0,"d":"$0.00"},{"v":0,"d":"$0.00"},{"v":0,"d":"$0.00"},{"v":0,"d":"$0.00"}]
[]
[null,"Hosting Services"]
[5,"Cloud Hosting Fee",null,"Per Unit",null,{"$f":"C17*E17","v":{"v":0,"d":"$0.00"}},{"v":0,"d":"$0.00"},{"v":0,"d":"$0.00"},{"v":0,"d":"$0.00"},{"v":0,"d":"$0.00"}]
["TOTAL:",{"$nulls":4},{"$f":"SUM(F5,F7,F9,F12,F14,F17)","v":{"v":0,"d":"$0.00"}},{"$f":"SUM(G5,G7,G9,G12,G14,G17)","v":{"v":0,"d":"$0.00"}},{"$f":"SUM(H5,H7,H9,H12,H14,H17)","v":{"v":0,"d":"$0.00"}},{"$f":"SUM(I5,I7,I9,I12,I14,I17)","v":{"v":0,"d":"$0.00"}},{"$f":"SUM(J5,J7,J9,J12,J14,J17)","v":{"v":0,"d":"$0.00"}}]

{"sheet":"D. Other Services","index":3,"n_rows":10,"n_cols":10,"rows_kept":10,"merged":[[0,0,0,9],[9,0,9,4]]}
["SECTION 3:  Other Charges or Services for Fire Code Permitting and Inspections Software"]
[]
["Item No.","Item Description","Estimated Yearly Quantity","Unit of Measure","Unit Price","Total Year 1 Price","Year 2 Price","Year 3 Price","Year 4 Price","Year 5 Price"]
[1,null,null,"Each",null,{"$f":"SUM(C4 * E4)","v":{"v":0,"d":"$0.00"}},{"v":0,"d":"$0.00"},{"v":0,"d":"$0.00"},{"v":0,"d":"$0.00"},{"v":0,"d":"$0.00"}]
[2,null,null,"Each",null,{"$f":"SUM(C5*E5)","v":{"v":0,"d":"$0.00"}},{"v":0,"d":"$0.00"},{"v":0,"d":"$0.00"},{"v":0,"d":"$0.00"},{"v":0,"d":"$0.00"}]
[3,null,null,"Each",null,{"$f":"SUM(C6*E6)","v":{"v":0,"d":"$0.00"}},{"v":0,"d":"$0.00"},{"v":0,"d":"$0.00"},{"v":0,"d":"$0.00"},{"v":0,"d":"$0.00"}]
[4,null,null,"Hr.",null,{"$f":"SUM(C7 * E7)","v":{"v":0,"d":"$0.00"}},{"v":0,"d":"$0.00"},{"v":0,"d":"$0.00"},{"v":0,"d":"$0.00"},{"v":0,"d":"$0.00"}]
[5,null,null,"Hr.",null,{"v":0,"d":"$0.00"},{"v":0,"d":"$0.00"},{"v":0,"d":"$0.00"},{"v":0,"d":"$0.00"},{"v":0,"d":"$0.00"}]
[6,null,null,"Hr.",null,{"v":0,"d":"$0.00"},{"v":0,"d":"$0.00"},{"v":0,"d":"$0.00"},{"v":0,"d":"$0.00"},{"v":0,"d":"$0.00"}]
["TOTAL:",{"$nulls":4},{"$f":"SUM(F4:F9)","v":{"v":0,"d":"$0.00"}},{"$f":"SUM(G4:G9)","v":{"v":0,"d":"$0.00"}},{"v":0,"d":"$0.00"},{"v":0,"d":"$0.00"},{"v":0,"d":"$0.00"}]

{"sheet":"Total Cost","index":4,"n_rows":10,"n_cols":6,"rows_kept":10,"merged":[[0,0,0,5],[12,0,12,5]]}
["Total Costs for Fire Code Permitting and Inspections Software"]
[]
["Cost Category","Year 1 Price","Year 2 Price","Year 3 Price","Year 4 Price","Year 5 Price"]
["Fire Code Permitting and Inspections Software Implementation and Project Mgmt.",{"$f":"'A.Implementation & Project Mgmt'!F18","v":0}]
[]
["Fire Code Permitting and Inspections Software Ongoing Maintenance and Support",{"$f":"'C.Ongoing Maintenance & Support'!F18","v":0},{"$f":"'C.Ongoing Maintenance & Support'!G18","v":0},{"$f":"'C.Ongoing Maintenance & Support'!H18","v":0},{"$f":"'C.Ongoing Maintenance & Support'!I18","v":0},{"$f":"'C.Ongoing Maintenance & Support'!J18","v":0}]
[]
["Fire Code Permitting and Inspections Software Other Charges or Services",{"$f":"'D. Other Services'!F10","v":0},{"$f":"'D. Other Services'!G10","v":0},{"$f":"'D. Other Services'!H10","v":0},{"$f":"'D. Other Services'!I10","v":0},{"$f":"'D. Other Services'!J10","v":0}]
[]
["Fire Code Permitting and Inspections Software TOTAL:",{"$f":"SUM(B4:B9)","v":0},{"$f":"SUM(C4:C9)","v":0},0,0,0]